[Event "Czech Championship 2022"]
[Site "Usti nad Labem"]
[Date "2022.05.20"]
[Round "7.6"]
[White "Stalmach, Richard"]
[Black "Nemec, Jachym"]
[Result "1/2-1/2"]
[ECO "D17"]
[WhiteElo "2350"]
[BlackElo "2367"]
[Annotator "TA"]
[PlyCount "133"]
[EventDate "2022.05.12"]
[EventType "swiss"]
[EventCountry "CZE"]
[SourceTitle "playchess.com"]
[Source "ChessBase"]
[SourceQuality "1"]
[TimeControl "40/5400+30:1800+30"]

{[%evp 15,133,21,21,27,14,14,16,11,10,6,6,8,31,40,37,18,56,0,54,25,46,51,53,42,55,47,59,26,76,76,89,80,93,89,101,90,179,138,138,122,123,120,129,53,52,8,15,-64,-64,-66,-7,0,-9,-5,-8,-91,-54,-58,6,-81,-70,-80,0,0,0,0,175,-127,-112,-132,-116,-116,-54,-106,-90,-102,-94,-137,-122,-125,-91,-122,-94,-156,-154,-189,-189,-189,-189,-206,-206,-202,-186,-252,-252,-247,-121,-120,-115,-136,-136,-162,-48,-48,-48,-50,0,-88,-12,-12,-12,-12,-15,-24,-8,-8,-8,-8,-8,-8]} 1. d4 {[%emt 0:00:02]} d5 {[%emt 0:00:05]} 2. c4 {[%emt 0:00:10]} c6 {[%emt 0:00:04]} 3. Nc3 {[%emt 0:00:09]} Nf6 {[%emt 0:00:05]} 4. Nf3 {[%emt 0:00:17]} dxc4 {[%emt 0:00:05]} 5. a4 {[%emt 0:00:38]} Bf5 {[%emt 0:00:07]} 6. Ne5 {[%emt 0:01:28]} Nbd7 {[%emt 0:00:07]} 7. Nxc4 {[%emt 0:00:17]} Nb6 {[%emt 0:00:04]} 8. Ne5 {[%emt 0:04:13]} a5 {[%emt 0:00:08]} 9. f3 {[%emt 0:06:14] D17: Slav Defence: 5 a4 Bf5: Lines with 6 Nh4 and 6 Ne5.} Nfd7 {[%emt 0:00:45]} 10. Nxd7 {[%emt 0:04:20]} Nxd7 {[%emt 0:00:16]} 11. e4 {[%emt 0:00:25]} Bg6 {[%emt 0:00:04]} 12. Bf4 {[%emt 0:09:38] [#]} e6 $146 {[%emt 0:03:12]} ({Predecessor:} 12... Qb6 13. Qd2 Rd8 14. Rd1 f6 15. d5 e5 16. dxe6 Nc5 17. Qxd8+ Qxd8 18. Rxd8+ Kxd8 {½-½ (49) Knopf,F (1929)-De Visser,L (2204) Germany 2014}) 13. Bc4 {[%emt 0:03:21]} Qb6 {[%emt 0:02:15]} 14. Qb3 {[%emt 0:05:52]} Qb4 {[%emt 0:07:14]} 15. Bd2 {[%emt 0:21:22]} Be7 {[%emt 0:09:44]} 16. Rc1 {[%emt 0:04:08]} (16. h4 $14 h6 17. Ne2 Qxb3 18. Bxb3) 16... O-O {[%emt 0:05:35]} (16... e5 $11) 17. Ne2 $14 {[%emt 0:07:46]} Qxb3 {[%emt 0:25:19]} 18. Bxb3 {[%emt 0:00:05]} Rfd8 {[%emt 0:00:33]} 19. h4 {[%emt 0:01:36] Threatens to win with h5.} h6 {[%emt 0:00:46]} 20. Nf4 {[%emt 0:00:46]} Bh7 {[%emt 0:00:06]} 21. Nd3 {[%emt 0:01:38]} Bd6 {[%emt 0:01:52]} (21... Bf6 $11) 22. Ke2 {[%emt 0:05:03]} Kf8 {[%emt 0:00:19]} 23. Be3 {[%emt 0:01:34]} Ke7 {[%emt 0:00:41]} 24. g4 {[%emt 0:00:22][%cal Bg2g4,Bg4g5][%mdl 32]} Rac8 {[%emt 0:03:49]} 25. g5 {[%emt 0:01:09]} e5 {[%emt 0:16:59]} (25... h5 $16 {was worth a try.}) 26. gxh6 {[%emt 0:02:46]} exd4 {[%emt 0:01:38]} 27. Bxd4 {[%emt 0:00:25]} gxh6 {[%emt 0:00:10]} 28. Be3 {[%emt 0:01:29] White is much more active.} Ne5 {[%emt 0:01:29]} 29. Nc5 {[%emt 0:04:43]} (29. Bxh6 $2 Nxd3 30. Rcd1 Nc5 $19) (29. Nxe5 $16 Bxe5 30. Rc5 (30. Bxh6 Bxb2 31. Rc2 Bd4 $16) 30... Bxb2 31. Rxa5 (31. Bxh6 b6 $16)) 29... Rb8 {[%emt 0:10:10]} 30. Rhg1 {[%emt 0:00:04]} Bg6 {[%emt 0:02:21]} 31. Bc2 {[%emt 0:04:28]} (31. Bxh6 $11 Bh5 32. Bg5+ f6 33. Bf4 Bxf3+ 34. Kf2 Bxc5+ 35. Rxc5 Nd3+ 36. Kxf3 Nxc5 37. Bc4 (37. Rg7+ Kf8 $14)) 31... Bh5 $15 {[%emt 0:01:10]} 32. Rcf1 {[%emt 0:00:35]} Rg8 {[%emt 0:03:02]} ({Better is} 32... Nc4 $15 33. e5 Bxe5 34. Bxh6 Rd5) 33. Nd3 $11 {[%emt 0:01:25]} Rxg1 {[%emt 0:00:47]} 34. Bxg1 {[%emt 0:00:03]} Rg8 {[%emt 0:02:11] aiming for ...Nxf3.} 35. Ne1 {[%emt 0:02:30]} (35. Nxe5 $11 {remains equal.} Rg2+ 36. Kd3 Bxe5 37. Bb6) 35... Bb4 {[%emt 0:01:33]} 36. Bd4 {[%emt 0:01:13]} Ng6 {[%emt 0:02:00]} (36... f6 $15) 37. Bf2 {[%emt 0:03:24]} (37. Ng2 $11 {keeps the balance.}) 37... Nf4+ $17 {[%emt 0:00:56]} 38. Ke3 {[%emt 0:00:10]} Bxe1 {[%emt 0:00:50]} ({Black should play} 38... Ng2+ $17 39. Nxg2 Rxg2) 39. Bxe1 $11 {[%emt 0:02:38]} Ng2+ {[%emt 0:00:21]} 40. Kf2 $1 {[%emt 0:01:22]} Nxh4 $2 {[%emt 0:00:48]} (40... Nxe1 $11 41. Rxe1 Rd8) 41. Rh1 $2 {[%emt 0:04:27]} (41. Bd1 $1 $18) 41... Rg2+ $17 {[%emt 0:01:05]} 42. Ke3 {[%emt 0:00:53]} Nxf3 {[%emt 0:04:13]} ({Resist} 42... Rxc2 43. Bxh4+ (43. Rxh4 Bg6 $11) 43... f6 44. Bxf6+ $1 Kxf6 45. Rxh5 $14) 43. Bxa5 {[%emt 0:00:56]} Nh2 {[%emt 0:05:16]} (43... Bg4 $17 44. Bb4+ Ke8) 44. Kd3 {[%emt 0:02:04]} ({White should try} 44. Bb4+ $15 Ke8 45. Rc1) 44... Bg6 {[%emt 0:01:13][%cal Og2c2] ...Rxc2! is the strong threat.} 45. Bd1 {[%emt 0:05:56]} h5 {[%emt 0:02:27]} 46. Bc7 {[%emt 0:04:41]} Ng4 {[%emt 0:00:16]} 47. Bxg4 {[%emt 0:00:27]} hxg4 {[%emt 0:01:30][%mdl 4096] Endgame KRB-KRB} 48. Rh4 {[%emt 0:03:44]} Kf6 {[%emt 0:01:14]} 49. Bd8+ {[%emt 0:01:49]} (49. Rh2 $142 Rg1 50. Rf2+ Ke6 51. Ke3) 49... Ke6 {[%emt 0:00:31]} 50. Ke3 {[%emt 0:00:43]} Rxb2 {[%emt 0:01:27]} 51. Rxg4 {[%emt 0:00:05] [#]} Rb3+ $1 {[%emt 0:00:10]} 52. Kf2 {[%emt 0:02:10]} Rb4 {[%emt 0:00:09]} 53. a5 {[%emt 0:00:04]} Bxe4 {[%emt 0:00:20]} ({Worse is} 53... Rxe4 54. Rxe4+ Bxe4 55. Ke3) 54. Ke3 {[%emt 0:00:03]} (54. Bb6 {might work better.}) 54... f5 $19 {[%emt 0:00:28]} 55. Rg7 {[%emt 0:00:06]} Kd5 {[%emt 0:01:35]} (55... Rb3+ $19 56. Kf2 c5 57. Rg6+ Kf7) 56. Bb6 $17 {[%emt 0:00:10]} Rb3+ {[%emt 0:01:17]} 57. Kf2 {[%emt 0:00:06]} f4 {[%emt 0:03:03]} 58. Rd7+ {[%emt 0:00:48]} Ke5 {[%emt 0:02:43]} (58... Ke6 $19 59. Rxb7 Rb2+ 60. Kg1 c5) 59. Rxb7 $15 {[%emt 0:00:43]} Rb2+ {[%emt 0:00:20]} 60. Ke1 {[%emt 0:00:13] And now Bc7+ would win.} Kf5 {[%emt 0:05:26]} (60... Rb1+ $15 61. Kd2 Ra1) 61. Re7 {[%emt 0:01:34]} (61. a6 $11) 61... Bd3 {[%emt 0:00:55]} (61... f3 $17) 62. Rd7 $11 {[%emt 0:01:41]} Bb5 {[%emt 0:00:29]} 63. Rd2 {[%emt 0:00:09]} Rb1+ {[%emt 0:02:53]} 64. Rd1 $1 {[%emt 0:00:04]} Rxd1+ {[%emt 0:01:40]} 65. Kxd1 {[%emt 0:00:07] The position is equal.} Ke4 {[%emt 0:00:04]} 66. Kd2 {[%emt 0:00:46]} Ba6 {[%emt 0:00:03]} 67. Kc3 {[%emt 0:00:21] White used his chance.  Weighted Error Value: White=0.31/Black=0.27 (precise)} 1/2-1/2

[Event "Czech Championship 2022"]
[Site "Usti nad Labem"]
[Date "2022.05.20"]
[Round "7.7"]
[White "Bouska, Jiri"]
[Black "Krejci, Jan"]
[Result "0-1"]
[ECO "B46"]
[WhiteElo "2117"]
[BlackElo "2520"]
[Annotator "TA"]
[PlyCount "102"]
[EventDate "2022.05.12"]
[EventType "swiss"]
[EventCountry "CZE"]
[SourceTitle "playchess.com"]
[Source "ChessBase"]
[SourceQuality "1"]
[TimeControl "40/5400+30:1800+30"]

{[%evp 16,101,32,19,19,-2,-10,-6,-10,-20,-4,-9,0,-8,11,-3,0,0,29,-65,-71,-79,-88,-88,-64,-75,0,-74,-59,-66,-71,-72,-58,-104,-72,-78,-78,-87,-90,-139,-44,-97,-84,-116,-112,-316,-86,-86,-72,-122,-102,-120,-108,-122,-114,-119,-130,-138,-118,-118,-86,-86,-74,-154,-139,-237,-237,-222,0,-58,0,-218,-46,-309,-314,-286,-277,-258,-245,-502,-469,-668,-646,-1222,-1195,-1168,-1099,-29999]} 1. e4 {[%emt 0:00:10]} c5 {[%emt 0:00:11]} 2. Nf3 {[%emt 0:00:15]} e6 {[%emt 0:00:06]} 3. d4 {[%emt 0:00:59]} cxd4 {[%emt 0:00:06]} 4. Nxd4 {[%emt 0:00:05]} Nc6 {[%emt 0:00:06]} 5. Nc3 {[%emt 0:00:04]} a6 {[%emt 0:00:04]} 6. Nxc6 {[%emt 0:01:12]} bxc6 {[%emt 0:00:02]} 7. Bd3 {[%emt 0:04:14]} d5 {[%emt 0:00:06]} 8. O-O {[%emt 0:00:34]} Nf6 {[%emt 0:00:05]} 9. Bg5 {[%emt 0:00:18]} Be7 {[%emt 1:34:14] B46: Sicilian: Taimanov: 5 Nc3 a6.} 10. e5 {[%emt 1:27:39]} Nd7 {[%emt 0:00:00][%csl LRe5,LRg5]} 11. Bxe7 {[%emt 0:00:00]} Qxe7 {[%emt 0:00:00] The position is equal.} 12. Qg4 {[%emt 0:00:00]} g6 {[%emt 0:00:00]} (12... O-O {looks sharper.} 13. Rae1 a5 14. Na4 Ba6) 13. Rfe1 {[%emt 0:00:00]} Rb8 {[%emt 0:00:00]} 14. Rab1 {[%emt 0:00:00] [#]} h5 $146 {[%emt 0:00:00]} ({Predecessor:} 14... O-O 15. g3 f6 16. exf6 Nxf6 17. Qe2 a5 18. Qe5 Bd7 19. h3 Rbe8 20. Bf1 Qc5 {0-1 (32) Phillips,R-Moffat,A (2105) Victoria 2012}) 15. Qe2 {[%emt 0:00:00]} a5 {[%emt 0:00:00]} 16. Qd2 {[%emt 0:00:00] Prevents Qg5.} h4 {[%emt 0:03:30]} 17. Ne2 {[%emt 0:03:30]} (17. h3 $11) 17... h3 $15 {[%emt 0:00:00]} 18. Nf4 {[%emt 0:00:00]} hxg2 {[%emt 0:00:00]} 19. Nxg2 {[%emt 0:00:00]} Qb4 {[%emt 0:00:00]} 20. Qg5 {[%emt 0:00:00]} Qe7 {[%emt 0:00:00]} (20... Rb6 $17) 21. Qg3 {[%emt 0:00:00]} (21. Qd2 $1 $11) 21... Bb7 {[%emt 0:00:00]} 22. Be2 {[%emt 0:00:00]} c5 {[%emt 0:00:00]} 23. Bf3 {[%emt 0:00:00]} a4 {[%emt 0:00:00]} 24. c4 {[%emt 0:00:00]} (24. b3 $15 {was preferrable.}) 24... d4 {[%emt 0:00:00]} 25. Bxb7 {[%emt 0:00:00]} Rxb7 {[%emt 0:00:00]} 26. b3 {[%emt 0:00:00]} Kf8 {[%emt 0:00:00]} 27. f4 {[%emt 0:00:00]} ({White should try} 27. Nf4 Ra7 28. Nd3) 27... a3 {[%emt 0:00:00]} (27... axb3 $17 {White must now prevent ...b2.} 28. axb3 Ra7) 28. Kf2 {[%emt 0:00:00]} (28. Re2 $15) 28... Rh5 {[%emt 0:00:00]} 29. Rg1 {[%emt 0:00:00]} Nb6 {[%emt 0:00:00][%cal Bd7b6,Bb6c8,Bc8e7,Be7f5,Bf5e3][%mdl 32]} 30. Rbd1 $2 {[%emt 0:00:00] [#]} (30. h3 $17) 30... Qc7 $2 {[%emt 0:00:00]} (30... Nxc4 $1 $19 {[%mdl 512]} 31. bxc4 Rb2+ 32. Kf1 Qb7) 31. Ne1 $17 {[%emt 0:07:00]} Nc8 {[%emt 0:00:00]} 32. Nd3 {[%emt 0:00:00]} (32. h4 $142) 32... Ne7 {[%emt 0:00:00] ...Nf5 is the strong threat.} 33. h3 {[%emt 0:00:00]} Nf5 {[%emt 0:00:00]} 34. Qf3 {[%emt 0:00:00]} Rb8 {[%emt 0:00:00]} 35. Ke2 {[%emt 0:00:00]} Ke7 {[%emt 0:00:00]} 36. Nf2 {[%emt 0:00:00]} Rbh8 $1 {[%emt 0:00:00][%cal Og6g5]} 37. Rd3 {[%emt 0:00:00]} Ne3 {[%emt 0:00:00][%cal Og6g5]} 38. Rg3 {[%emt 0:01:10] Prevents g5.} Rh4 {[%emt 0:03:10] Black is much more active.} 39. Ne4 {[%emt 0:02:02]} (39. Rxe3 $142 dxe3 40. Qxe3) 39... Qc6 $1 {[%emt 0:02:29]} 40. Ng5 {[%emt 0:00:34]} (40. Kf2 $17) 40... Qxf3+ $19 {[%emt 0:00:44]} 41. Kxf3 {[%emt 0:02:08]} Kd7 $2 {[%emt 0:09:33]} (41... Rf8 $1 $19 {Strongly threatening ...f6.} 42. Ne4 Nf5) 42. Ke4 {[%emt 0:08:45]} (42. b4 $11) 42... Ke7 $2 {[%emt 0:04:52]} (42... Kc6 $15) 43. Kf3 {[%emt 0:00:24] [#]} R8h5 $2 {[%emt 0:03:42]} ({Better is} 43... Rf8 $1 $19 {Threatens to win with ...f6.} 44. Ne4 Nf5) 44. Rg1 $2 {[%emt 0:06:36][%mdl 8192] [#]} (44. b4 $1 $15) 44... f6 $1 {[%emt 0:00:54]} 45. exf6+ {[%emt 0:00:29]} Kxf6 {[%emt 0:00:01] Really sharp!} 46. Ne4+ {[%emt 0:00:38]} Ke7 {[%emt 0:02:04]} 47. Rxg6 $2 {[%emt 0:02:46]} (47. Ng5 {was called for.}) 47... Rf5 {[%emt 0:00:13]} 48. Rg4 {[%emt 0:03:23]} ({Inferior is} 48. Rg7+ Kf8 49. Rg4 Rxh3+ 50. Rg3 Rh4 $19) (48. Ke2 $142 Rhxf4 49. Rxe3 dxe3 50. Kxe3 (50. Rg4 $2 Rxg4 51. hxg4 Rf4 $19)) 48... Rxh3+ {[%emt 0:00:18]} 49. Ng3 {[%emt 0:00:17]} Nxg4 {[%emt 0:03:06]} 50. Kxg4 {[%emt 0:00:26] [#]} Rfh5 $3 {[%emt 0:00:08][%mdl 512]} 51. Rf3 {[%emt 0:00:52]} (51. b4 R5h4+) 51... R3h4# {[%emt 0:16:16] Weighted Error Value: White=0.71/Black=0.35} 0-1

[Event "Czech Championship 2022"]
[Site "Usti nad Labem"]
[Date "2022.05.20"]
[Round "7.8"]
[White "Stinka, Jakub"]
[Black "Rasik, Vitezslav"]
[Result "0-1"]
[ECO "E71"]
[WhiteElo "2345"]
[BlackElo "2433"]
[Annotator "TA"]
[PlyCount "56"]
[EventDate "2022.05.12"]
[EventType "swiss"]
[EventCountry "CZE"]
[SourceTitle "playchess.com"]
[Source "ChessBase"]
[SourceQuality "1"]
[TimeControl "40/5400+30:1800+30"]

{[%evp 16,56,30,27,45,0,27,-5,40,41,50,33,31,16,30,0,0,0,11,0,14,3,0,0,32,-2,0,0,-21,-44,-7,-218,-227,-223,-223,-243,-237,-581,-538,-755,-723,-736,-743]} 1. d4 {[%emt 0:00:07]} d6 {[%emt 0:00:17]} 2. c4 {[%emt 0:00:08]} g6 {[%emt 0:00:13]} 3. Nc3 {[%emt 0:00:12]} Bg7 {[%emt 0:00:05]} 4. e4 {[%emt 0:00:12]} Nf6 {[%emt 0:00:15]} 5. h3 {[%emt 0:00:29]} O-O {[%emt 0:00:24]} 6. Bg5 {[%emt 0:00:14]} Na6 {[%emt 0:00:19]} 7. Bd3 {[%emt 0:00:57]} e5 {[%emt 0:00:22]} 8. d5 {[%emt 0:00:14]} c6 {[%emt 0:00:22]} 9. Nge2 {[%emt 0:00:21]} cxd5 {[%emt 0:00:21] E71: King's Indian: 4 e4 d6 5 h3.} 10. exd5 {[%emt 0:00:22] [#]} (10. Nxd5 {with more complications.} Nc5 11. Nec3 Ne6 12. Bh4) 10... Qc7 $146 {[%emt 0:08:56]} ({Predecessor:} 10... h6 11. Be3 Nd7 12. O-O f5 13. f4 e4 14. Bb1 Nb6 15. b3 Nc5 16. Bc2 Bd7 17. Bd4 {½-½ (39) Kazhgaleyev,M (2602)-Zhou,J (2516) Hyderabad 2005}) 11. O-O {[%emt 0:09:51]} Ne8 {[%emt 0:04:18] The position is equal.} 12. Nb5 {[%emt 0:12:10]} Qd7 {[%emt 0:01:15]} 13. Be3 {[%emt 0:01:51]} b6 {[%emt 0:08:48]} 14. Qd2 {[%emt 0:09:04]} f5 {[%emt 0:05:17] Hoping for ...f4.} 15. f4 {[%emt 0:07:47]} Nc5 {[%emt 0:07:36]} 16. Bc2 {[%emt 0:00:41]} Nf6 {[%emt 0:01:58]} 17. Nbc3 {[%emt 0:03:22]} a5 {[%emt 0:08:40]} 18. Rab1 {[%emt 0:05:11]} Ba6 {[%emt 0:09:59]} 19. b3 {[%emt 0:01:31]} Rfe8 {[%emt 0:06:56]} 20. Ng3 {[%emt 0:09:41]} b5 {[%emt 0:05:42]} 21. fxe5 {[%emt 0:10:02]} Rxe5 {[%emt 0:00:08]} 22. Bd4 {[%emt 0:00:33] [#]} bxc4 $1 {[%emt 0:03:33]} 23. b4 {[%emt 0:07:22] Now White is beyond hope.} (23. Bxe5 $11 dxe5 24. bxc4) (23. bxc4 Bxc4) 23... axb4 $19 {[%emt 0:00:53]} 24. Rxb4 {[%emt 0:00:02] [#]} Nd3 {[%emt 0:06:42]} ({Weaker is} 24... Nxd5 25. Bxe5 Nxb4 26. Bxf5 $17) 25. Rb6 {[%emt 0:05:29]} Nxd5 {[%emt 0:02:57]} 26. Ba4 $2 {[%emt 0:02:35]} (26. Bxd3 {is more resistant.} Nxb6 27. Bxf5 gxf5 28. Bxb6) 26... Qa7 {[%emt 0:04:50] Black is clearly winning.} 27. Bxe5 {[%emt 0:03:32]} Qxb6+ {[%emt 0:02:23]} 28. Kh1 {[%emt 0:00:14]} Qe3 {[%emt 0:02:39] Weighted Error Value: White=0.56/Black=0.06 (flawless)} 0-1

[Event "Czech Championship 2022"]
[Site "Usti nad Labem"]
[Date "2022.05.20"]
[Round "7.9"]
[White "Mikes, Jan"]
[Black "Babula, Vlastimil jr"]
[Result "1/2-1/2"]
[ECO "B23"]
[WhiteElo "2349"]
[BlackElo "2217"]
[Annotator "TA"]
[PlyCount "98"]
[EventDate "2022.05.12"]
[EventType "swiss"]
[EventCountry "CZE"]
[SourceTitle "playchess.com"]
[Source "ChessBase"]
[SourceQuality "1"]
[TimeControl "40/5400+30:1800+30"]

{[%evp 9,98,10,15,4,30,4,2,-9,6,-46,19,9,16,14,23,9,57,52,58,55,59,60,58,58,71,52,47,40,72,84,83,83,84,77,85,62,69,83,83,67,72,72,70,68,61,70,71,63,70,71,70,70,87,73,131,98,83,81,138,124,133,141,133,133,162,162,170,170,168,162,205,114,106,12,12,0,13,0,0,0,29,0,0,0,34,0,0,0,0,0,112]} 1. e4 {[%emt 0:00:05]} c5 {[%emt 0:00:07]} 2. Nc3 {[%emt 0:00:20]} Nc6 {[%emt 0:00:13]} 3. Bb5 {[%emt 0:00:10]} Nd4 {[%emt 0:00:54]} 4. Nf3 {[%emt 0:00:22]} a6 {[%emt 0:02:20]} 5. Bd3 {[%emt 0:00:29]} Nc6 {[%emt 0:01:58]} 6. O-O {[%emt 0:00:08] B23: Closed Sicilian: Lines without g3.} d6 {[%emt 0:01:01]} 7. a3 {[%emt 0:01:06]} e6 {[%emt 0:02:48]} 8. Rb1 {[%emt 0:00:56] [#]} b5 $146 {[%emt 0:15:12]} ({Predecessor:} 8... Nge7 9. b4 b6 10. b5 axb5 11. Nxb5 Ng6 12. Bb2 Bd7 13. Re1 Nce5 14. Bf1 Be7 {1-0 (39) Guseinov,G (2666)-Palliser,R (2399) Chess.com INT 2020}) 9. Re1 {[%emt 0:00:29]} (9. b4 $11) 9... g6 {[%emt 0:11:35]} (9... g5 $15 10. g3 Bg7) 10. b4 {[%emt 0:04:12]} cxb4 {[%emt 0:03:23]} 11. axb4 {[%emt 0:00:09]} Bg7 {[%emt 0:00:12]} 12. Bf1 {[%emt 0:01:23]} e5 {[%emt 0:02:41]} (12... Qb6 $11) 13. Nd5 $14 {[%emt 0:03:25][%cal Od2d4]} Nge7 {[%emt 0:06:09]} 14. c4 {[%emt 0:00:56]} (14. d4 {is more complex.} exd4 15. Bg5 h6 16. Bf6) 14... bxc4 {[%emt 0:03:08]} 15. Bxc4 {[%emt 0:00:16][%cal Od2d4]} O-O {[%emt 0:02:09]} 16. d3 {[%emt 0:02:59]} h6 {[%emt 0:04:48]} 17. Qa4 {[%emt 0:17:15] Threatens to win with b5. 0x0.000843195b33dp-1022s more active pieces.} Bd7 {[%emt 0:05:25]} 18. Qa2 {[%emt 0:00:53]} a5 {[%emt 0:14:21]} 19. Nxe7+ {[%emt 0:05:21]} ({Don't play} 19. b5 Nxd5 20. exd5 (20. Bxd5 Nb4 $15) (20. bxc6 Nb4 $11) 20... Nb4 $11) 19... Qxe7 {[%emt 0:04:21]} 20. b5 {[%emt 0:00:08]} Nb4 {[%emt 0:03:29] [#]} 21. Qa4 {[%emt 0:00:13]} Rfb8 {[%emt 0:07:32]} 22. Bd2 {[%emt 0:02:24]} Qe8 {[%emt 0:00:22][%cal Rd7b5]} 23. Bxb4 {[%emt 0:00:24]} axb4 {[%emt 0:00:02]} 24. Qxb4 {[%emt 0:00:00]} Bf8 $1 {[%emt 0:00:00][%cal Od6d5]} 25. Qb3 {[%emt 0:00:41]} Rb6 {[%emt 0:03:24]} 26. Ra1 {[%emt 0:09:23][%cal Oc4f7] Black must now prevent Bxf7+!} Rab8 {[%emt 0:01:44][%cal Rd7b5]} 27. Ra7 {[%emt 0:00:57]} Be7 $1 {[%emt 0:00:54][%cal Rd7b5] [#] Inhibits Nh4.} 28. Bxf7+ $1 {[%emt 0:06:52]} Qxf7 {[%emt 0:00:02]} 29. Qxf7+ {[%emt 0:00:08]} Kxf7 {[%emt 0:00:01]} 30. Rxd7 {[%emt 0:00:05]} Ke6 {[%emt 0:02:43]} 31. Ra7 {[%emt 0:00:18]} Bf6 {[%emt 0:00:10]} ({Black should try} 31... Rxb5 32. d4 R8b7) 32. Nd2 {[%emt 0:01:57]} Rxb5 {[%emt 0:00:04]} 33. Kf1 {[%emt 0:01:02]} Rb2 {[%emt 0:01:34]} (33... Bd8 $142) 34. Nc4 $16 {[%emt 0:00:31]} Rc2 {[%emt 0:00:32]} 35. g3 {[%emt 0:01:33]} h5 {[%emt 0:01:18]} 36. h4 {[%emt 0:02:12]} Rb3 {[%emt 0:01:20]} 37. Rd1 {[%emt 0:00:59]} Rb8 {[%emt 0:00:29]} 38. Ne3 {[%emt 0:00:35]} Rcb2 {[%emt 0:00:30]} 39. Nd5 {[%emt 0:00:40]} Rf8 {[%emt 0:00:22]} 40. f4 {[%emt 0:01:37]} (40. Rc1 $18 {Strongly threatening Rcc7.} Bd8 41. f4) 40... Rc8 {[%emt 0:00:40]} 41. fxe5 {[%emt 0:39:31]} (41. Nc7+ $16 Rxc7 42. Rxc7) 41... Rcc2 $1 $11 {[%emt 0:04:48]} 42. Nf4+ {[%emt 0:00:00]} Kxe5 {[%emt 0:00:06]} 43. Rf7 {[%emt 0:00:00] And now d4+ would win.} Bd8 $1 {[%emt 0:07:15]} 44. Nxg6+ {[%emt 0:00:00]} Ke6 {[%emt 0:03:21]} (44... Kd4 $5 {[%cal Rd8b6]}) 45. Rf3 {[%emt 0:00:00]} Bb6 {[%emt 0:01:28] ( -> ...Rh2)} 46. Nf4+ {[%emt 0:00:00]} Kd7 {[%emt 0:00:57] Hoping for ...Rh2.} 47. Nd5 {[%emt 0:02:36]} (47. Nxh5 {gets mated.} Rh2 48. Nf6+ Ke6) 47... Rh2 {[%emt 0:01:53][%cal Rh2h1] The position is equal.} 48. Nxb6+ {[%emt 0:00:10]} Kc6 {[%emt 0:00:28][%cal Rh2h1]} 49. Kg1 {[%emt 0:00:22] Against Rh1+. Nd5 is the strong threat.} Rbg2+ {[%emt 0:00:24] Black defended with fortune.  Weighted Error Value: White=0.15 (very precise) /Black=0.11 (very precise)} (49... Rhg2+ $11 {keeps the balance.} 50. Kf1 Rh2) 1/2-1/2